{"text_format":"3","workbook":"xlsx","n_sheets":1,"sheets":["Cheltuieli inițiale"],"not_rendered":{"defined_names":1},"read":"whole","date_system":"1900"}

{"sheet":"Cheltuieli inițiale","index":0,"n_rows":120,"n_cols":4,"rows_kept":120,"merged":[[1,1,1,3],[10,1,10,3],[17,1,17,3],[25,1,25,3],[34,1,34,3],[42,1,42,3],[50,1,50,3],[55,1,55,3],[57,1,57,3],[59,1,59,3],[60,1,60,3],[69,1,69,3],[76,1,76,3],[81,1,81,3],[82,1,82,3],[90,1,90,3],[102,1,102,3],[110,1,110,3],[115,1,115,3]]}
["CHELTUIELI INIȚIALE",null,null,"NUME FIRMĂ, SRL"]
[null,"OBSERVAȚIE ÎNAINTE DE A UTILIZA ACEASTĂ FOAIE DE LUCRU\nAproape toată lumea care a înființat vreodată o firmă a subestimat costurile și apoi s-a confruntat cu pericolul de a nu avea rezerve de capital adecvate. Soluția pentru a evita această capcană este să adoptați o abordare riguroasă pentru cercetare și planificare. Șablonul nostru Cheltuieli inițiale vă va ghida prin proces.\n\nÎNCEPEȚI PRIN A ESTIMA CHELTUIELILE\nCât vă va costa să porniți afacerea? Secretul acurateței este atenția la detalii. Pentru fiecare categorie de cheltuieli, faceți o listă cu tot ce va trebui să achiziționați. Aceasta va include atât activele materiale (de exemplu, echipamentele, obiectele de inventar), cât și serviciile (de exemplu, renovarea, asigurările). Apoi stabiliți de unde puteți achiziționa aceste produse sau servicii. Căutați mai mulți furnizori; faceți comparații. Nu analizați doar prețul; sunt importante și condițiile de plată, livrarea, fiabilitatea și service-ul. "]
[]
[null,"CHELTUIELI INIȚIALE"]
[null,"CLĂDIRI/IMOBILIARE"," ","SUMĂ"]
[null,"Achiziționare",null,{"v":0,"d":"0.00 lei"}]
[null,"Construcție",null,{"v":0,"d":"0.00 lei"}]
[null,"Renovare",null,{"v":0,"d":"0.00 lei"}]
[null,"Altele",null,{"v":0,"d":"0.00 lei"}]
[null,"Total",null,{"$f":"SUBTOTAL(109,Imobiliare[SUMĂ])","v":{"v":0,"d":"0.00 lei"}}]
[]
[null,"ÎMBUNĂTĂȚIRI ALE PROPRIETĂȚILOR ÎNCHIRIATE"," ","SUMĂ"]
[null,"Articolul 1",null,{"v":0,"d":"0.00 lei"}]
[null,"Articolul 2",null,{"v":0,"d":"0.00 lei"}]
[null,"Articolul 3",null,{"v":0,"d":"0.00 lei"}]
[null,"Articolul 4",null,{"v":0,"d":"0.00 lei"}]
[null,"Total",null,{"$f":"SUBTOTAL(109,Îmbunătățiri[SUMĂ])","v":{"v":0,"d":"0.00 lei"}}]
[]
[null,"LISTĂ DE ECHIPAMENTE - CAPITAL"," ","SUMĂ"]
[null,"Mobilier",null,{"v":0,"d":"0.00 lei"}]
[null,"Echipament",null,{"v":0,"d":"0.00 lei"}]
[null,"Accesorii",null,{"v":0,"d":"0.00 lei"}]
[null,"Dispozitive",null,{"v":0,"d":"0.00 lei"}]
[null,"Altele",null,{"v":0,"d":"0.00 lei"}]
[null,"Total",null,{"$f":"SUBTOTAL(109,Capital[SUMĂ])","v":{"v":0,"d":"0.00 lei"}}]
[]
[null,"CHELTUIELI CU LOCAȚIA ȘI ADMINISTRAREA"," ","SUMĂ"]
[null,"Închirieri",null,{"v":0,"d":"0.00 lei"}]
[null,"Depozite utilități",null,{"v":0,"d":"0.00 lei"}]
[null,"Taxe juridice și de contabilitate",null,{"v":0,"d":"0.00 lei"}]
[null,"Asigurare preplătită",null,{"v":0,"d":"0.00 lei"}]
[null,"Salarii anterioare deschiderii ",null,{"v":0,"d":"0.00 lei"}]
[null,"Altele",null,{"v":0,"d":"0.00 lei"}]
[null,"Total",null,{"$f":"SUBTOTAL(109,CheltuieliAdministrative[SUMĂ])","v":{"v":0,"d":"0.00 lei"}}]
[]
[null,"INVENTAR INIȚIAL"," ","SUMĂ"]
[null,"Categoria 1",null,{"v":0,"d":"0.00 lei"}]
[null,"Categoria 2",null,{"v":0,"d":"0.00 lei"}]
[null,"Categoria 3",null,{"v":0,"d":"0.00 lei"}]
[null,"Categoria 4",null,{"v":0,"d":"0.00 lei"}]
[null,"Categoria 5",null,{"v":0,"d":"0.00 lei"}]
[null,"Total",null,{"$f":"SUBTOTAL(109,InventarInițial[SUMĂ])","v":{"v":0,"d":"0.00 lei"}}]
[]
[null,"CHELTUIELI PROMOȚIONALE ȘI DE PUBLICITATE"," ","SUMĂ"]
[null,"Publicitate",null,{"v":0,"d":"0.00 lei"}]
[null,"Afișe",null,{"v":0,"d":"0.00 lei"}]
[null,"Imprimare",null,{"v":0,"d":"0.00 lei"}]
[null,"Călătorii/divertisment",null,{"v":0,"d":"0.00 lei"}]
[null,"Categorii suplimentare/altele",null,{"v":0,"d":"0.00 lei"}]
[null,"Total",null,{"$f":"SUBTOTAL(109,CheltuieliPromo[SUMĂ])","v":{"v":0,"d":"0.00 lei"}}]
[]
[null,"ALTE CHELTUIELI"," ","SUMĂ"]
[null,"Alte cheltuieli 1",null,{"v":0,"d":"0.00 lei"}]
[null,"Alte cheltuieli 2",null,{"v":0,"d":"0.00 lei"}]
[null,"Total",null,{"$f":"SUBTOTAL(109,AlteCheltuieli[SUMĂ])","v":{"v":0,"d":"0.00 lei"}}]
[]
[null,"Rezervă pentru situații neprevăzute",null,{"v":0,"d":"0.00 lei"}]
[]
[null,"Capital de lucru ",null,{"v":0,"d":"0.00 lei"}]
[]
[null,"ADĂUGAȚI O REZERVĂ PENTRU SITUAȚII NEPREVĂZUTE\nExplicați în detaliu cum ați decis valoarea pe care o păstrați ca rezervă. \n\nSTABILIȚI FLUXUL DE NUMERAR\nNu puteți deschide cu un cont bancar gol. Aveți nevoie de o rezervă de numerar pentru cheltuielile care apar la începutul afacerii. În cele din urmă, ar trebui să aveți o proiecție a fluxului de numerar pe 12 luni. Aici va trebui să stabiliți estimarea de capital de lucru necesar. Momentan, lăsați acest rând necompletat sau aproximați valoarea cât mai bine. După ce ați completat fluxul de numerar, puteți să reveniți și să introduceți suma calculată.\n\nINTRODUCEȚI SURSELE DE CAPITAL\nAcum, că ați estimat de cât capital veți avea nevoie pentru a începe, îndreptați-vă atenția spre partea de sus a acestei foi de lucru. Introduceți sumele pe care le veți furniza dvs., cele pe care le vor aduce partenerii sau investitorii și sumele care vor fi împrumutate."]
[]
[null,"SURSE DE CAPITAL"]
[null,"INVESTIȚIA PROPRIETARILOR (NUME ȘI PROCENT DE PROPRIETATE)"," ","SUMĂ"]
[null,"Numele și procentul de proprietate",null,{"v":0,"d":"0.00 lei"}]
[null,"Alt investitor",null,{"v":0,"d":"0.00 lei"}]
[null,"Alt investitor",null,{"v":0,"d":"0.00 lei"}]
[null,"Alt investitor",null,{"v":0,"d":"0.00 lei"}]
[null,"Total",null,{"$f":"SUBTOTAL(109,InvestițiiProprietari[SUMĂ])","v":{"v":0,"d":"0.00 lei"}}]
[]
[null,"ÎMPRUMUTURI BANCARE"," ","SUMĂ"]
[null,"Bancă 1",null,{"v":0,"d":"0.00 lei"}]
[null,"Bancă 2",null,{"v":0,"d":"0.00 lei"}]
[null,"Bancă 3",null,{"v":0,"d":"0.00 lei"}]
[null,"Bancă 4",null,{"v":0,"d":"0.00 lei"}]
[null,"Total",null,{"$f":"SUBTOTAL(109,ÎmprumuturiBancare[SUMĂ])","v":{"v":0,"d":"0.00 lei"}}]
[]
[null,"ALTE ÎMPRUMUTURI"," ","SUMĂ"]
[null,"Sursă 1",null,{"v":0,"d":"0.00 lei"}]
[null,"Sursă 2",null,{"v":0,"d":"0.00 lei"}]
[null,"Total",null,{"$f":"SUBTOTAL(109,AlteÎmprumuturi[SUMĂ])","v":{"v":0,"d":"0.00 lei"}}]
[]
[null,"OFERIȚI O DOVADĂ DE GARANȚIE\nDacă veți utiliza acest plan pentru a susține o solicitare de împrumut bancar, utilizați secțiunea din partea de jos pentru a arăta activele oferite ca garanții pentru a securiza împrumutul și a estima valoarea acestor elemente. Fiți pregătit să oferiți dovezi pentru estimările de valoare ale garanțiilor."]
[]
[null,"REZUMAT"]
[null,"SURSĂ DE CAPITAL"," ","TOTALURI"]
[null,"Capital de la proprietari și alte investiții",null,{"$f":"InvestițiiProprietari[[#Totals],[SUMĂ]]","v":{"v":0,"d":"0.00 lei"}}]
[null,"Împrumuturi bancare",null,{"$f":"ÎmprumuturiBancare[[#Totals],[SUMĂ]]","v":{"v":0,"d":"0.00 lei"}}]
[null,"Alte împrumuturi",null,{"$f":"AlteÎmprumuturi[[#Totals],[SUMĂ]]","v":{"v":0,"d":"0.00 lei"}}]
[null,"Total",null,{"$f":"SUBTOTAL(109,SurseCapital[TOTALURI])","v":{"v":0,"d":"0.00 lei"}}]
[]
[null,"CHELTUIELI INIȚIALE"," ","TOTALURI"]
[null,"Clădiri/imobiliare",null,{"$f":"Imobiliare[[#Totals],[SUMĂ]]","v":{"v":0,"d":"0.00 lei"}}]
[null,"Îmbunătățiri ale proprietăților închiriate",null,{"$f":"Îmbunătățiri[[#Totals],[SUMĂ]]","v":{"v":0,"d":"0.00 lei"}}]
[null,"Echipamente - capital",null,{"$f":"Capital[[#Totals],[SUMĂ]]","v":{"v":0,"d":"0.00 lei"}}]
[null,"Cheltuieli privind locația/administrarea",null,{"$f":"CheltuieliAdministrative[[#Totals],[SUMĂ]]","v":{"v":0,"d":"0.00 lei"}}]
[null,"Inventar inițial",null,{"$f":"InventarInițial[[#Totals],[SUMĂ]]","v":{"v":0,"d":"0.00 lei"}}]
[null,"Cheltuieli promoționale/de publicitate",null,{"$f":"CheltuieliPromo[[#Totals],[SUMĂ]]","v":{"v":0,"d":"0.00 lei"}}]
[null,"Alte cheltuieli",null,{"$f":"AlteCheltuieli[[#Totals],[SUMĂ]]","v":{"v":0,"d":"0.00 lei"}}]
[null,"Fond de rezervă",null,{"$f":"SUM('Cheltuieli inițiale'!$C$57)","v":{"v":0,"d":"0.00 lei"}}]
[null,"Capital de lucru",null,{"$f":"SUM('Cheltuieli inițiale'!$C$59)","v":{"v":0,"d":"0.00 lei"}}]
[null,"Total",null,{"$f":"SUBTOTAL(109,CheltuieliInițiale[TOTALURI])","v":{"v":0,"d":"0.00 lei"}}]
[]
[null,"SECURITATE ȘI GARANȚIE PENTRU PROPUNEREA DE ÎMPRUMUT"]
[null,"GARANȚIE PENTRU ÎMPRUMUTURI","DESCRIERE","VALOARE"]
[null,"Imobiliare",null,{"v":0,"d":"0.00 lei"}]
[null,"Alte garanții",null,{"v":0,"d":"0.00 lei"}]
[null,"Alte garanții",null,{"v":0,"d":"0.00 lei"}]
[null,"Alte garanții",null,{"v":0,"d":"0.00 lei"}]
[null,"Total",null,{"$f":"SUBTOTAL(109,Garanție[VALOARE])","v":{"v":0,"d":"0.00 lei"}}]
[]
[null,"PROPRIETARI"," ","  "]
[null,"Numele dvs. aici"]
[null,"Alt proprietar"]
[null,"Alt proprietar"]
[]
[null,"GARANȚII ÎMPRUMUTULUI (ALȚII DECÂT PROPRIETARII)"," ","  "]
[null,"Garant împrumut 1"]
[null,"Garant împrumut 2"]
[null,"Garant împrumut 3"]